bitfinex-derivatives/quotes_SOLF0:USTF0_20241025
["timestamp","ask_amount","ask_price","bid_price","bid_amount"]
[1729858081604,8.81672919,174.4,174.37,2.8689]
[1729858082006,8.81672919,174.4,174.36,4.38]
[1729858082204,8.81672919,174.38,174.36,4.38]
[1729858082707,8.81672919,174.38,174.35,4.38]
[1729858083311,8.81672919,174.38,174.37,2.869]
[1729858084812,8.81672919,174.38,174.33,11.30732919]
[1729858084813,8.81672919,174.38,174.34,4.38]
[1729858085110,2.8683,174.42,174.34,4.38]
[1729858085111,8.81672919,174.35,174.34,4.38]
[1729858085310,8.81672919,174.35,174.34,7.2495]
[1729858086113,8.81672919,174.35,174.26,2.5463]
[1729858086305,8.81672919,174.34,174.33,2.8695]
[1729858086813,8.81672919,174.34,174.28,8.81672919]
[1729858087009,8.81672919,174.34,174.32,2.8698]
[1729858087215,8.81672919,174.34,174.28,8.81672919]
[1729858087508,8.81672919,174.33,174.3,2.8701]
[1729858087720,8.81672919,174.33,174.29,4.3]
[1729858089121,8.81672919,174.32,174.29,4.3]
[1729858089318,8.81672919,174.32,174.3,2.87]
[1729858089703,8.81672919,174.31,174.3,2.87]
[1729858090618,8.81672919,174.31,174.19,5.744]
[1729858090619,8.81672919,174.31,174.27,2.8706]
[1729858090808,8.81672919,174.28,174.27,2.8706]
[1729858091611,8.81672919,174.3,174.28,2.8704]
[1729858091808,8.81672919,174.31,174.26,8.81672919]
[1729858092118,8.81672919,174.35,174.3,8.81672919]
[1729858092319,1.2428,174.36,174.3,8.81672919]
[1729858092510,10.05952919,174.36,174.3,8.81672919]
[1729858093412,10.05952919,174.36,174.32,2.8697]
[1729858093613,10.05952919,174.36,174.3,8.81672919]
[1729858094212,2.5468,174.37,174.33,8.81672919]
[1729858094423,1.2986,174.37,174.33,8.81672919]
[1729858094716,1.2986,174.37,174.34,2.8695]
[1729858095014,1.2986,174.37,174.33,8.81672919]
[1729858096430,1.2986,174.37,174.36,2.8692]
[1729858097023,10.11532919,174.37,174.32,8.81672919]
[1729858097411,8.81672919,174.36,174.33,2.8696]
[1729858097614,8.81672919,174.34,174.33,2.8696]
[1729858098024,8.81672919,174.34,174.31,4.3]
[1729858098211,8.81672919,174.34,174.29,8.81672919]
[1729858098212,8.81672919,174.34,174.32,2.8697]
[1729858100221,8.81672919,174.36,174.31,8.81672919]
[1729858100819,8.81672919,174.36,174.32,2.8697]
[1729858101326,8.81672919,174.35,174.32,2.8697]
[1729858103822,8.81672919,174.35,174.3,8.81672919]
[1729858104525,8.81672919,174.35,174.28,4.3]
[1729858104825,8.81672919,174.32,174.28,13.11672919]
[1729858105329,8.81672919,174.32,174.3,2.87]
[1729858105535,8.81672919,174.32,174.28,13.11672919]
[1729858106136,8.81672919,174.32,174.29,2.8702]
[1729858106834,8.81672919,174.33,174.28,8.81672919]
[1729858107136,4.3,174.35,174.3,8.81672919]
[1729858107137,8.81672919,174.34,174.3,8.81672919]
[1729858107529,8.81672919,174.34,174.3,11.68672919]
[1729858107732,13.11672919,174.35,174.3,8.81672919]
[1729858107932,13.11672919,174.35,174.31,8.81672919]
[1729858108131,8.81672919,174.35,174.32,2.8698]
[1729858111538,8.81672919,174.35,174.3,8.81672919]
[1729858112631,1.2986,174.37,174.3,8.81672919]
[1729858112632,1.2986,174.37,174.34,8.81672919]
[1729858112837,10.11532919,174.37,174.32,8.81672919]
[1729858113234,10.11532919,174.37,174.35,2.8692]
[1729858113629,1.2986,174.37,174.32,8.81672919]
[1729858113833,10.11532919,174.37,174.36,2.8692]
[1729858122139,10.11532919,174.37,174.35,2.8693]
[1729858123032,8.81672919,174.36,174.35,2.8693]
[1729858123637,11.68592919,174.36,174.33,2.8695]
[1729858124041,8.81672919,174.34,174.33,2.8695]
[1729858125743,8.81672919,174.34,174.32,2.8698]
[1729858127344,1.2986,174.37,174.29,13.03672919]
[1729858127540,1.2986,174.37,174.32,8.81672919]
[1729858127744,10.11532919,174.37,174.32,8.81672919]
[1729858127934,12.98432919,174.37,174.34,2.8694]
[1729858128138,12.98432919,174.37,174.29,4.22]
[1729858128139,8.81672919,174.35,174.29,4.22]
[1729858128339,1.2986,174.37,174.27,13.03672919]
[1729858128340,8.81672919,174.33,174.27,13.03672919]
[1729858128640,8.81672919,174.33,174.29,2.8702]
[1729858128641,8.81672919,174.32,174.29,2.8702]
[1729858131046,2.8698,174.33,174.29,2.8702]
[1729858131351,8.81672919,174.32,174.29,2.8702]
[1729858133954,8.81672919,174.32,174.29,2.8703]
[1729858137484,8.81672919,174.32,174.3,2.8701]
[1729858137684,8.81672919,174.32,174.28,8.81672919]
[1729858138491,8.81672919,174.31,174.29,2.8702]
[1729858138872,8.81672919,174.31,174.26,10.06602919]
[1729858140374,8.81672919,174.31,174.3,2.8701]
[1729858140663,8.81672919,174.32,174.3,2.8701]
[1729858145470,8.81672919,174.32,174.31,2.87]
[1729858146371,8.81672919,174.35,174.3,8.81672919]
[1729858147171,8.81672919,174.35,174.34,2.8693]
[1729858147572,337.0,174.47,174.35,2.8692]
[1729858147573,4.2,174.39,174.35,2.8692]
[1729858147874,8.81672919,174.37,174.35,2.8692]
[1729858148058,8.81672919,174.36,174.31,8.81672919]
[1729858148258,8.81672919,174.36,174.35,2.8692]
[1729858149570,2.8689,174.38,174.35,2.8692]
[1729858149759,8.81672919,174.36,174.35,2.8692]
[1729858150471,2.8689,174.38,174.31,8.81672919]
[1729858150671,2.8689,174.38,174.36,2.8691]
[1729858150871,8.81672919,174.37,174.36,2.8691]
[1729858152867,8.81672919,174.37,174.31,8.81672919]
[1729858153067,8.81672919,174.34,174.3,13.01672919]
[1729858153264,8.81672919,174.33,174.3,4.2]
[1729858154076,8.81672919,174.33,174.32,2.8698]
[1729858154281,8.81672919,174.34,174.3,4.2]
[1729858154669,8.81672919,174.34,174.33,2.8697]
[1729858156172,8.81672919,174.35,174.34,2.8695]
[1729858157279,2.8689,174.38,174.34,2.8695]
[1729858157584,8.81672919,174.35,174.34,2.8695]
[1729858157978,2.8689,174.38,174.34,2.8695]
[1729858158172,8.81672919,174.35,174.34,2.8695]
[1729858158774,2.8689,174.38,174.34,2.8695]
[1729858158980,8.81672919,174.35,174.34,2.8695]
[1729858159176,3.6456,174.44,174.34,13.01672919]
[1729858159377,2.8674,174.47,174.44,2.8678]
[1729858159571,4.2,174.49,174.39,13.01672919]
[1729858159784,8.81672919,174.44,174.39,13.01672919]
[1729858159981,8.81672919,174.44,174.43,2.868]
[1729858162082,8.81672919,174.44,174.41,2.8683]
[1729858162280,8.81672919,174.42,174.41,2.8683]
[1729858162683,4.2,174.51,174.4,8.81672919]
[1729858162886,8.81672919,174.46,174.4,8.81672919]
[1729858163284,8.81672919,174.46,174.44,2.8678]
[1729858163484,4.2,174.51,174.4,8.81672919]
[1729858163683,8.81672919,174.46,174.4,8.81672919]
[1729858164382,8.81672919,174.46,174.45,2.8677]
[1729858164588,8.81672919,174.46,174.42,13.01672919]
[1729858164887,4.2,174.52,174.42,13.01672919]
[1729858165096,8.81672919,174.46,174.42,13.01672919]
[1729858165577,4.2,174.52,174.43,8.81672919]
[1729858165778,8.81672919,174.48,174.43,8.81672919]
[1729858167982,8.81672919,174.48,174.47,2.8673]
[1729858170486,8.81672919,174.48,174.46,2.8675]
[1729858170684,2.867,174.5,174.46,2.8675]
[1729858170685,8.81672919,174.47,174.46,2.8675]
[1729858171183,8.81672919,174.47,174.42,4.2]
[1729858171490,8.81672919,174.45,174.42,4.2]
[1729858171680,8.81672919,174.45,174.4,8.81672919]
[1729858171881,8.81672919,174.42,174.36,8.81672919]
[1729858172082,4.2,174.49,174.35,3.7523]
[1729858172083,8.81672919,174.41,174.35,3.7523]
[1729858172287,4.2,174.49,174.35,3.7523]
[1729858172288,8.81672919,174.39,174.35,7.9523]
[1729858172685,8.81672919,174.39,174.38,2.8687]
[1729858174183,8.81672919,174.39,174.35,4.2]
[1729858174494,8.81672919,174.37,174.33,8.81672919]
[1729858174785,2.4472,174.44,174.37,2.869]
[1729858175091,8.81672919,174.38,174.33,13.01672919]
[1729858175285,8.81672919,174.38,174.36,2.869]
[1729858175887,8.81672919,174.38,174.37,2.869]
[1729858176586,8.81672919,174.38,174.36,2.869]
[1729858176799,8.81672919,174.37,174.33,4.2]
[1729858176995,2.4472,174.44,174.33,4.2]
[1729858176996,8.81672919,174.35,174.33,4.2]
[1729858177290,8.81672919,174.35,174.3,3.6838]
[1729858177291,8.81672919,174.35,174.3,12.50052919]
[1729858177591,8.81672919,174.35,174.34,2.8695]
[1729858179397,8.81672919,174.35,174.31,4.14]
[1729858179590,4.14,174.41,174.34,2.8695]
[1729858179591,1.1756,174.4,174.34,2.8695]
[1729858179898,8.81672919,174.35,174.34,2.8695]
[1729858183596,8.81672919,174.35,174.29,12.95672919]
[1729858183787,8.81672919,174.35,174.29,8.81672919]
[1729858183986,8.81672919,174.35,174.29,12.95672919]
[1729858184187,8.81672919,174.35,174.33,2.8695]
[1729858184395,8.81672919,174.35,174.29,12.95672919]
[1729858185300,8.81672919,174.35,174.34,2.8695]
[1729858186501,8.81672919,174.35,174.33,2.8696]
[1729858187095,8.81672919,174.35,174.34,2.8695]
[1729858187403,8.81672919,174.35,174.29,12.95672919]
[1729858187601,8.81672919,174.35,174.34,2.8695]
[1729858188098,2.8687,174.39,174.34,2.8695]
[1729858188300,8.81672919,174.35,174.34,2.8695]
[1729858188605,8.81672919,174.35,174.26,4.14]
[1729858188795,4.14,174.37,174.32,2.8697]
[1729858188796,8.81672919,174.33,174.32,2.8697]
[1729858191814,8.81672919,174.33,174.3,2.87]
[1729858192003,8.81672919,174.3,174.27,4.14]
[1729858192898,8.81672919,174.3,174.29,2.8703]
[1729858195608,8.81672919,174.32,174.31,2.8699]
[1729858216021,2.8695,174.34,174.31,2.8699]
[1729858216223,8.81672919,174.32,174.31,2.8699]
[1729858217623,8.81672919,174.32,174.23,1.1739]
[1729858217820,8.81672919,174.24,174.2,4.12]
[1729858218024,8.81672919,174.24,174.18,8.81672919]
[1729858218219,8.81672919,174.24,174.23,2.8713]
[1729858219024,8.81672919,174.25,174.2,8.81672919]
[1729858219325,8.81672919,174.25,174.24,2.8711]
[1729858219528,1.234,174.3,174.24,8.81672919]
[1729858219727,8.81672919,174.29,174.28,2.8703]
[1729858220025,1.2189,174.37,174.26,8.81672919]
[1729858220224,8.81672919,174.34,174.28,8.81672919]
[1729858220424,8.81672919,174.34,174.28,12.93672919]
[1729858220726,2.8694,174.35,174.28,12.93672919]
[1729858220727,8.81672919,174.32,174.28,12.93672919]
[1729858220925,8.81672919,174.32,174.28,4.12]
[1729858221127,8.81672919,174.31,174.3,2.87]
[1729858222922,2.8694,174.35,174.3,2.87]
[1729858223132,8.81672919,174.34,174.33,2.8696]
[1729858223319,8.81672919,174.34,174.29,8.81672919]
[1729858225328,8.81672919,174.33,174.32,2.8698]
[1729858225928,11.68642919,174.33,174.29,2.8702]
[1729858226134,8.81672919,174.3,174.29,2.8702]
[1729858226828,8.81672919,174.3,174.27,2.8705]
[1729858227029,8.81672919,174.28,174.25,4.12]
[1729858227224,4.12,174.34,174.25,4.12]
[1729858227225,8.81672919,174.27,174.25,4.12]
[1729858227430,8.81672919,174.27,174.26,2.8707]
[1729858227728,8.81672919,174.27,174.16,61.96]
[1729858227932,1.2379,174.33,174.24,2.871]
[1729858228228,8.81672919,174.25,174.21,4.12]
[1729858228430,8.81672919,174.23,174.22,2.8715]
[1729858229336,2.8706,174.28,174.24,2.8711]
[1729858229530,8.81672919,174.25,174.24,2.8711]
[1729858229729,8.81672919,174.25,174.21,4.12]
[1729858229930,2.8707,174.27,174.22,2.8714]
[1729858230436,4.12,174.3,174.2,2.8717]
[1729858230828,4.12,174.3,174.17,2.3662]
[1729858231030,8.81672919,174.18,174.09,2.64108776]
[1729858231332,8.81672919,174.15,174.1,15.17665206]
[1729858231638,8.81672919,174.15,174.11,1.05522287]
[1729858231827,8.81672919,174.15,174.14,2.8728]
[1729858233136,8.81672919,174.15,174.1,4.12]
[1729858233335,2.8723,174.17,174.11,2.8732]
[1729858233532,2.8723,174.17,174.07,4.12]
[1729858233533,4.12,174.18,174.1,4.59]
[1729858233923,2.8723,174.17,174.12,2.8731]
[1729858234331,8.81672919,174.13,174.12,2.8731]
[1729858235131,3.652,174.21,174.1,4.59]
[1729858235132,4.12,174.18,174.14,2.8726]
[1729858235327,8.81672919,174.15,174.14,2.8726]
[1729858238139,8.81672919,174.15,174.1,4.59]
[1729858238336,8.81672919,174.15,174.06,4.22]
[1729858238337,8.81672919,174.11,174.06,4.22]
[1729858238638,8.81672919,174.07,174.06,4.22]
[1729858239428,4.12,174.18,174.06,4.22]
[1729858239429,2.8726,174.15,174.06,4.22]
[1729858239630,8.81672919,174.11,174.07,8.81672919]
[1729858239833,8.81672919,174.13,174.08,8.81672919]
[1729858240036,8.81672919,174.13,174.12,2.8731]
[1729858240439,13.79961098,174.16,174.1,4.22]
[1729858240638,3.652,174.21,174.16,2.8723]
[1729858240639,4.22,174.2,174.16,2.8723]
[1729858240838,13.79961098,174.18,174.16,2.8723]
[1729858241139,16.67171098,174.18,174.12,2.873]
[1729858241343,18.01961098,174.2,174.1,4.22]
[1729858241344,13.79961098,174.15,174.1,4.22]
[1729858242040,18.01961098,174.2,174.1,4.22]
[1729858242041,13.79961098,174.12,174.1,4.22]
[1729858242242,13.79961098,174.12,174.08,4.22]
[1729858243442,13.79961098,174.14,174.08,4.22]
[1729858243634,13.79961098,174.16,174.08,4.22]
[1729858245046,13.79961098,174.16,174.13,2.8728]
[1729858245340,13.79961098,174.16,174.08,4.22]
[1729858245533,13.79961098,174.14,174.08,4.22]
[1729858247639,13.79961098,174.16,174.08,4.22]
[1729858247843,13.79961098,174.18,174.16,2.8724]
[1729858248645,13.79961098,174.18,174.15,2.8726]
[1729858249041,13.79961098,174.18,174.08,4.22]
[1729858249246,13.79961098,174.18,174.09,13.79961098]
[1729858250646,13.79961098,174.18,174.11,2.8732]
[1729858250848,13.79961098,174.18,174.09,13.79961098]
[1729858251048,13.79961098,174.18,174.1,4.22]
[1729858251551,13.79961098,174.18,174.16,2.8723]
[1729858252140,13.79961098,174.18,174.14,2.8728]
[1729858252340,13.79961098,174.15,174.1,4.22]
[1729858252943,13.79961098,174.15,174.13,2.8728]
[1729858255050,13.79961098,174.15,174.1,4.22]
[1729858255249,13.79961098,174.13,174.12,2.8731]
[1729858258657,13.79961098,174.15,174.05,13.79961098]
[1729858258957,13.79961098,174.15,174.14,2.8728]
[1729858260252,13.79961098,174.15,174.13,2.8729]
[1729858263142,13.79961098,174.15,174.14,4.59]
[1729858264751,13.79961098,174.15,174.13,2.8728]
[1729858266350,8.82487341,174.14,174.13,2.8728]
[1729858268350,2.872,174.19,174.13,2.8729]
[1729858268559,8.82487341,174.17,174.13,8.82487341]
[1729858268762,8.82487341,174.19,174.11,4.2]
[1729858268947,8.82487341,174.18,174.12,8.82487341]
[1729858270352,7.852,174.21,174.17,2.8723]
[1729858270353,13.79263362,174.2,174.17,2.8723]
[1729858270952,13.79263362,174.2,174.11,17.99263362]
[1729858271355,13.79263362,174.2,174.11,4.2]
[1729858271554,13.79263362,174.2,174.17,2.8722]
[1729858272252,4.2,174.21,174.12,13.79263362]
[1729858272451,13.79263362,174.25,174.15,13.79263362]
[1729858272656,13.79263362,174.25,174.16,4.2]
[1729858272858,13.79263362,174.25,174.22,2.8715]
[1729858273052,13.79263362,174.25,174.16,4.2]
[1729858273256,17.99263362,174.27,174.16,4.2]
[1729858273451,17.99263362,174.27,174.17,13.79263362]
[1729858273653,3.5942,174.28,174.17,13.79263362]
[1729858273654,7.7942,174.28,174.17,13.79263362]
[1729858273853,7.7942,174.28,174.18,1.2511]
[1729858274053,10.6647,174.28,174.23,2.8712]
[1729858274257,7.7942,174.28,174.21,4.2]
[1729858274863,10.6647,174.28,174.21,4.2]
[1729858275069,7.7942,174.28,174.21,4.2]
[1729858275866,10.6648,174.28,174.23,2.8712]
[1729858276269,13.79263362,174.27,174.23,7.4612]
[1729858276970,16.66333362,174.27,174.23,7.4612]
[1729858277268,2.8709,174.26,174.23,7.4612]
[1729858277475,2.8709,174.26,174.23,4.59]
[1729858277871,2.8709,174.26,174.24,4.30834731]
[1729858278072,2.8709,174.26,174.25,4.30834731]
[1729858278371,2.8709,174.26,174.25,8.89834731]
[1729858278571,2.8709,174.26,174.25,6.94314731]
[1729858278764,13.79263362,174.27,174.23,4.59]
[1729858278964,16.66373362,174.24,174.23,4.59]
[1729858279172,13.79263362,174.24,174.23,4.59]
[1729858279363,4.2,174.27,174.23,18.2880745]
[1729858279565,4.2,174.27,174.24,13.6980745]
[1729858279566,16.66373362,174.25,174.24,13.6980745]
[1729858279776,16.66373362,174.25,174.23,4.59]
[1729858281477,13.79263362,174.25,174.23,4.59]
[1729858281682,2.8711,174.24,174.23,4.59]
[1729858283975,16.66363362,174.25,174.23,4.59]
[1729858284173,13.79263362,174.25,174.23,4.59]
[1729858286478,2.8711,174.24,174.23,4.59]
[1729858289280,13.79263362,174.29,174.23,4.59]
[1729858289582,2.4591,174.31,174.23,13.87]
[1729858289783,2.8703,174.29,174.25,2.8709]
[1729858290085,2.8703,174.29,174.23,13.87]
[1729858291383,2.8703,174.29,174.26,2.8708]
[1729858292281,2.8705,174.28,174.25,2.8709]
[1729858293992,13.79263362,174.3,174.23,9.28]
[1729858294191,2.8705,174.28,174.24,2.8711]
[1729858294882,2.8707,174.27,174.24,2.8711]
[1729858296292,11.68937756,174.27,174.24,2.8711]
[1729858297190,8.81867756,174.27,174.23,12.1513]
[1729858297796,11.68937756,174.27,174.23,12.1513]
[1729858297986,8.81867756,174.24,174.23,9.28]
[1729858298792,8.81867756,174.24,174.23,13.87]
[1729858299295,11.68977756,174.24,174.23,13.87]
[1729858302994,15.88977756,174.24,174.23,13.87]
[1729858308902,13.01867756,174.24,174.18,2.8721]
[1729858309204,8.81867756,174.21,174.16,8.81867756]
[1729858310002,8.81867756,174.21,174.17,2.8722]
[1729858310201,8.81867756,174.21,174.16,8.81867756]
[1729858310703,8.81867756,174.21,174.19,2.8719]
[1729858312606,8.81867756,174.21,174.16,8.81867756]
[1729858312904,4.2,174.24,174.16,8.81867756]
[1729858313210,8.81867756,174.21,174.2,2.8718]
[1729858316109,8.81867756,174.21,174.15,6.7149]
[1729858316110,8.81867756,174.21,174.19,2.8719]
[1729858316410,8.81867756,174.2,174.19,2.8719]
[1729858320106,8.81867756,174.2,174.18,2.8721]
[1729858321909,8.81867756,174.21,174.19,2.872]
[1729858322609,5.43305209,174.3,174.2,8.81867756]
[1729858322610,4.2,174.26,174.2,8.81867756]
[1729858322801,8.81867756,174.26,174.2,8.81867756]
[1729858323007,8.81867756,174.26,174.21,8.81867756]
[1729858323202,8.81867756,174.27,174.23,8.81867756]
[1729858325106,8.81867756,174.26,174.21,8.81867756]
[1729858325301,8.81867756,174.26,174.24,2.871]
[1729858328503,4.2,174.29,174.2,1.1834]
[1729858328504,8.81867756,174.25,174.2,1.1834]
[1729858328815,8.81867756,174.24,174.21,2.8715]
[1729858330514,11.68987756,174.24,174.21,2.8715]
[1729858331413,8.81867756,174.24,174.21,2.8715]
[1729858332617,2.8713,174.24,174.2,2.8718]
[1729858332813,8.81867756,174.22,174.2,2.8718]
[1729858333514,8.81867756,174.22,174.18,12.95867756]
[1729858333515,8.81867756,174.22,174.19,2.8719]
[1729858333716,8.81867756,174.22,174.18,12.95867756]
[1729858334114,8.81867756,174.22,174.19,2.8719]
[1729858334316,8.81867756,174.22,174.18,12.95867756]
[1729858334713,8.81867756,174.22,174.21,2.8716]
[1729858335017,8.81867756,174.22,174.18,12.95867756]
[1729858336509,8.81867756,174.22,174.2,2.8717]
[1729858338012,11.68947756,174.26,174.22,2.8714]
[1729858338213,8.81867756,174.26,174.21,8.81867756]
[1729858338619,11.68957756,174.26,174.22,2.8714]
[1729858339315,2.871,174.25,174.22,2.8714]
[1729858340819,8.81867756,174.24,174.22,2.8714]
[1729858341617,8.81867756,174.23,174.21,2.8716]
[1729858344219,11.69027756,174.22,174.16,4.14]
[1729858344423,8.81867756,174.21,174.16,4.14]
[1729858345718,8.81867756,174.21,174.18,2.872]
[1729858347315,11.69037756,174.21,174.18,2.872]
[1729858347521,8.81867756,174.19,174.15,5.4053]
[1729858348124,8.81867756,174.19,174.15,1.2653]
[1729858348326,4.14,174.25,174.13,8.81867756]
[1729858348327,8.81867756,174.18,174.13,8.81867756]
[1729858348521,2.4109,174.24,174.15,8.81867756]
[1729858348729,8.81867756,174.21,174.18,2.872]
[1729858348924,11.69027756,174.22,174.18,2.872]
[1729858349128,11.69027756,174.22,174.19,8.19]
[1729858349334,11.69027756,174.22,174.19,11.0619]
[1729858349527,7.0113,174.23,174.19,8.19]
[1729858349830,11.68997756,174.23,174.19,8.19]
[1729858350031,11.68997756,174.23,174.2,2.8717]
[1729858351029,11.69017756,174.22,174.2,2.8717]
[1729858352529,11.69017756,174.22,174.19,8.19]
[1729858352530,11.69017756,174.22,174.19,11.0619]
[1729858354730,2.8718,174.21,174.19,11.0619]
[1729858355125,8.81867756,174.22,174.19,8.19]
[1729858355321,11.69047756,174.2,174.19,8.19]
[1729858357123,2.8724,174.17,174.14,2.8727]
[1729858357320,8.81867756,174.15,174.14,2.8727]
[1729858357726,8.81867756,174.16,174.15,2.8726]
[1729858358327,8.81867756,174.16,174.1,5.4085]
[1729858358328,8.81867756,174.16,174.1,1.2685]
[1729858358527,8.81867756,174.15,174.13,2.8729]
[1729858359528,8.81867756,174.15,174.12,2.873]
[1729858360331,11.69127756,174.15,174.12,2.873]
[1729858360534,8.81867756,174.15,174.06,1.1893]
[1729858360733,8.81867756,174.15,174.07,5.3144]
[1729858361041,11.69137756,174.15,174.09,8.81867756]
[1729858361334,11.69137756,174.15,174.12,2.8731]
[1729858368431,11.69137756,174.15,174.11,8.81867756]
[1729858368638,4.12,174.17,174.11,8.81867756]
[1729858368639,6.9924,174.17,174.11,8.81867756]
[1729858368836,8.81867756,174.16,174.11,8.81867756]
[1729858369543,8.81867756,174.16,174.14,2.8726]
[1729858369929,11.69117756,174.16,174.14,2.8726]
[1729858370840,8.81867756,174.16,174.14,2.8726]
[1729858371631,8.81867756,174.15,174.14,2.8726]
[1729858373443,2.8725,174.16,174.14,2.8726]
[1729858373642,8.81867756,174.15,174.14,2.8726]
[1729858373938,8.81867756,174.15,174.11,8.81867756]
[1729858374141,8.81867756,174.15,174.14,2.8728]
[1729858374543,2.8725,174.16,174.14,2.8728]
[1729858374847,8.81867756,174.15,174.14,2.8728]
[1729858377644,8.81867756,174.15,174.13,2.8728]
[1729858378236,8.81867756,174.15,174.11,8.81867756]
[1729858378440,8.81867756,174.15,174.07,1.1944]
[1729858378441,8.81867756,174.12,174.07,1.1944]
[1729858378646,8.81867756,174.08,174.07,1.1944]
[1729858380241,8.81867756,174.08,174.04,4.12]
[1729858380441,8.81867756,174.07,174.04,4.12]
[1729858381547,8.81867756,174.07,174.06,2.8741]
[1729858383654,8.81867756,174.07,174.02,4.12]
[1729858383857,8.81867756,174.05,174.04,2.8743]
[1729858386652,8.81867756,174.05,174.0,7.981]
[1729858386851,8.81867756,174.01,174.0,3.861]
[1729858387659,8.81867756,174.01,174.0,1.2972]
[1729858387850,8.81867756,174.01,173.97,4.12]
[1729858388050,358.39044874,174.18,173.96,5.3768]
[1729858388051,8.81867756,173.98,173.96,5.3768]
[1729858388251,8.81867756,173.97,173.96,5.3768]
[1729858388446,8.81867756,173.97,173.96,8.2526]
[1729858388854,0.7677,174.08,173.96,14.19547756]
[1729858389059,8.81867756,174.03,173.98,8.81867756]
[1729858389656,8.81867756,174.02,173.97,8.81867756]
[1729858390358,4.12,174.08,174.01,2.8748]
[1729858390560,4.12,174.08,173.98,8.81867756]
[1729858390561,8.81867756,174.02,173.98,8.81867756]
[1729858391450,8.81867756,174.02,174.01,2.8749]
[1729858393054,1.2004,174.14,174.0,4.12]
[1729858393251,1.2004,174.14,174.07,2.8739]
[1729858393252,8.81867756,174.08,174.07,2.8739]
[1729858395352,4.12,174.13,174.04,12.93867756]
[1729858395551,4.12,174.13,174.1,2.8733]
[1729858395760,8.81867756,174.11,174.1,2.8733]
[1729858396565,4.12,174.16,174.12,2.8731]
[1729858396869,8.81867756,174.13,174.12,2.8731]
[1729858397457,8.81867756,174.14,174.13,2.8729]
[1729858398662,2.8717,174.21,174.17,2.8722]
[1729858398865,8.81867756,174.18,174.17,2.8722]
[1729858400560,6.9912,174.24,174.21,2.8716]
[1729858400965,8.81867756,174.22,174.16,12.93867756]
[1729858401163,8.81867756,174.22,174.2,2.8718]
[1729858401359,8.81867756,174.22,174.16,12.93867756]
[1729858401560,8.81867756,174.2,174.16,4.12]
[1729858401966,8.81867756,174.19,174.16,4.12]
[1729858402563,8.81867756,174.19,174.18,2.8721]
[1729858402866,8.81867756,174.19,174.16,4.12]
[1729858403066,4.12,174.25,174.16,4.12]
[1729858403366,8.81867756,174.19,174.16,4.12]
[1729858403565,8.81867756,174.21,174.18,2.872]
[1729858403959,8.81867756,174.21,174.16,12.93867756]
[1729858403960,1.2799,174.26,174.17,8.81867756]
[1729858404165,0.7686,174.28,174.16,4.12]
[1729858404166,8.81867756,174.24,174.18,8.81867756]
[1729858404362,8.81867756,174.24,174.2,8.81867756]
[1729858404764,8.81867756,174.24,174.21,2.8716]
[1729858407165,8.81867756,174.24,174.22,2.8714]
[1729858407564,8.81867756,174.24,174.18,8.81867756]
[1729858408166,8.81867756,174.24,174.21,2.8715]
[1729858410973,2.871,174.25,174.21,2.8715]
[1729858411162,8.81867756,174.24,174.22,2.8715]
[1729858413875,8.81867756,174.24,174.21,2.8715]
[1729858414071,8.81867756,174.24,174.18,8.81867756]
[1729858416268,8.81867756,174.24,174.21,2.8715]
[1729858418978,8.81867756,174.24,174.22,2.8714]
[1729858421180,8.81867756,174.23,174.22,2.8714]
[1729858422880,8.81867756,174.23,174.22,2.8715]
[1729858423379,8.81867756,174.23,174.18,8.81867756]
[1729858423580,8.81867756,174.19,174.18,2.872]
[1729858427289,8.81867756,174.2,174.18,2.872]
[1729858427484,8.81867756,174.23,174.21,2.8715]
[1729858427789,12.93867756,174.25,174.2,8.81867756]
[1729858427989,8.81867756,174.25,174.22,2.8713]
[1729858428189,11.68967756,174.25,174.2,8.81867756]
[1729858428391,8.81867756,174.23,174.19,4.12]
[1729858428590,8.81867756,174.22,174.19,4.12]
[1729858428796,8.81867756,174.22,174.2,2.8717]
[1729858429390,11.69027756,174.21,174.16,4.12]